[Event "Early-Titled-Tuesday-Blitz-March-26-2024"]
[Site "Chess.com"]
[Date "2024.03.26"]
[Round "9"]
[White "a-z30"]
[Black "karinachess1"]
[Result "0-1"]
[WhiteElo "2448"]
[BlackElo "2611"]
[TimeControl "180+1"]
[EndTime "9:43:10 PDT"]
[Termination "karinachess1 won on time"]

1. d3 {[%clk 0:03:00.9]} 1... d5 {[%clk 0:02:59.7]} 2. Nf3 {[%clk 0:03:00]} 2...
Nf6 {[%clk 0:02:59.9]} 3. g3 {[%clk 0:03:00.7]} 3... g6 {[%clk 0:03:00.1]} 4.
Bg2 {[%clk 0:03:01.3]} 4... Bg7 {[%clk 0:03:00.6]} 5. O-O {[%clk 0:03:02]} 5...
O-O {[%clk 0:03:01]} 6. c4 {[%clk 0:03:02.7]} 6... c6 {[%clk 0:02:58.8]} 7. cxd5
{[%clk 0:03:02.7]} 7... cxd5 {[%clk 0:02:59]} 8. Nc3 {[%clk 0:03:03.5]} 8... Nc6
{[%clk 0:02:59.3]} 9. Bf4 {[%clk 0:03:03.6]} 9... d4 {[%clk 0:02:53.9]} 10. Nb1
{[%clk 0:03:03]} 10... Nd5 {[%clk 0:02:51.3]} 11. Qc1 {[%clk 0:02:55.1]} 11...
Nxf4 {[%clk 0:02:46.4]} 12. Qxf4 {[%clk 0:02:54.4]} 12... e5 {[%clk 0:02:47.2]}
13. Qd2 {[%clk 0:02:35.2]} 13... h6 {[%clk 0:02:47.2]} 14. Rc1 {[%clk 0:02:18]}
14... Be6 {[%clk 0:02:46.1]} 15. Na3 {[%clk 0:01:58.9]} 15... Kh7 {[%clk
0:02:34.7]} 16. Rc5 {[%clk 0:01:47.4]} 16... f5 {[%clk 0:02:24.6]} 17. Nc4
{[%clk 0:01:45.2]} 17... e4 {[%clk 0:02:16.7]} 18. Nfe5 {[%clk 0:01:37.2]} 18...
Nxe5 {[%clk 0:02:07.7]} 19. Nxe5 {[%clk 0:01:36.1]} 19... Qd6 {[%clk 0:02:08.3]}
20. Rac1 {[%clk 0:00:46]} 20... Bxe5 {[%clk 0:02:06.5]} 21. dxe4 {[%clk
0:00:45.8]} 21... Rac8 {[%clk 0:01:49.3]} 22. Rxc8 {[%clk 0:00:32.3]} 22... Rxc8
{[%clk 0:01:50.2]} 23. Rxc8 {[%clk 0:00:31.7]} 23... Bxc8 {[%clk 0:01:51.1]} 24.
exf5 {[%clk 0:00:32.1]} 24... gxf5 {[%clk 0:01:38.7]} 25. Qa5 {[%clk 0:00:30.5]}
25... a6 {[%clk 0:01:34.7]} 26. Qa4 {[%clk 0:00:21.2]} 26... Bd7 {[%clk
0:01:31]} 27. Qb3 {[%clk 0:00:19.6]} 27... Be6 {[%clk 0:00:59]} 28. Qxb7+ {[%clk
0:00:18.8]} 28... Bg7 {[%clk 0:00:59.7]} 29. h4 {[%clk 0:00:17.4]} 29... Bxa2
{[%clk 0:00:55.5]} 30. Bh3 {[%clk 0:00:09.3]} 30... Be6 {[%clk 0:00:53.7]} 31.
Qf3 {[%clk 0:00:07.8]} 31... Qe5 {[%clk 0:00:51.2]} 32. Bg2 {[%clk 0:00:07.1]}
32... a5 {[%clk 0:00:41.3]} 33. Qd3 {[%clk 0:00:07.3]} 33... a4 {[%clk
0:00:40.7]} 34. Bh3 {[%clk 0:00:06.6]} 34... h5 {[%clk 0:00:29.8]} 35. Qa6
{[%clk 0:00:05.4]} 35... Bd7 {[%clk 0:00:24]} 36. Qd3 {[%clk 0:00:05.4]} 36...
Kg6 {[%clk 0:00:21]} 37. Bg2 {[%clk 0:00:05.7]} 37... Bb5 {[%clk 0:00:20.3]} 38.
Qd2 {[%clk 0:00:03.5]} 38... Bf6 {[%clk 0:00:18.8]} 39. Bf3 {[%clk 0:00:02.4]}
39... d3 {[%clk 0:00:17.6]} 40. exd3 {[%clk 0:00:02]} 40... Qxb2 {[%clk
0:00:17.9]} 0-1

[Event "Early-Titled-Tuesday-Blitz-March-26-2024"]
[Site "Chess.com"]
[Date "2024.03.26"]
[Round "9"]
[White "Nf3c5"]
[Black "BallottiLuca"]
[Result "1-0"]
[WhiteElo "2535"]
[BlackElo "2362"]
[TimeControl "180+1"]
[EndTime "9:43:10 PDT"]
[Termination "Nf3c5 won on time"]

1. d4 {[%clk 0:03:00.9]} 1... d5 {[%clk 0:02:59.4]} 2. Nf3 {[%clk 0:03:01.3]}
2... c5 {[%clk 0:02:58.4]} 3. e3 {[%clk 0:02:59.8]} 3... Nf6 {[%clk 0:02:56.3]}
4. dxc5 {[%clk 0:02:57.9]} 4... e6 {[%clk 0:02:54]} 5. a3 {[%clk 0:02:58]} 5...
Bxc5 {[%clk 0:02:51.5]} 6. b4 {[%clk 0:02:58.5]} 6... Be7 {[%clk 0:02:50.1]} 7.
Bb2 {[%clk 0:02:59.2]} 7... O-O {[%clk 0:02:48.7]} 8. c4 {[%clk 0:02:59.8]} 8...
a5 {[%clk 0:02:46]} 9. b5 {[%clk 0:02:58.4]} 9... Nbd7 {[%clk 0:02:45]} 10. Nbd2
{[%clk 0:02:59]} 10... Nc5 {[%clk 0:02:42.8]} 11. Be2 {[%clk 0:02:47.7]} 11...
Nfe4 {[%clk 0:02:40.6]} 12. cxd5 {[%clk 0:02:37.1]} 12... exd5 {[%clk 0:02:37]}
13. O-O {[%clk 0:02:28.8]} 13... a4 {[%clk 0:02:21.4]} 14. Rc1 {[%clk
0:02:18.4]} 14... b6 {[%clk 0:02:18.9]} 15. Nd4 {[%clk 0:02:09.9]} 15... Bd7
{[%clk 0:02:12.5]} 16. N2f3 {[%clk 0:02:09]} 16... Bd6 {[%clk 0:02:09.9]} 17.
Nc6 {[%clk 0:01:59.6]} 17... Qc7 {[%clk 0:01:53.3]} 18. Qxd5 {[%clk 0:01:53.6]}
18... Be6 {[%clk 0:01:50]} 19. Qh5 {[%clk 0:01:49.9]} 19... f6 {[%clk 0:01:24]}
20. Nfd4 {[%clk 0:01:33.1]} 20... Bf7 {[%clk 0:01:23.7]} 21. Qh3 {[%clk
0:01:23.9]} 21... Rfe8 {[%clk 0:01:07.7]} 22. Rfd1 {[%clk 0:01:21.1]} 22... Ng5
{[%clk 0:00:55.4]} 23. Qh4 {[%clk 0:01:17.2]} 23... Re4 {[%clk 0:00:55.6]} 24.
f4 {[%clk 0:01:15.5]} 24... Rae8 {[%clk 0:00:40.5]} 25. Bf1 {[%clk 0:00:48]}
25... Nge6 {[%clk 0:00:38.7]} 26. Nf5 {[%clk 0:00:46.6]} 26... Bf8 {[%clk
0:00:28.8]} 27. Qg3 {[%clk 0:00:36.1]} 27... g6 {[%clk 0:00:24.4]} 28. Bxf6
{[%clk 0:00:33.8]} 28... Nd7 {[%clk 0:00:15.3]} 29. Nce7+ {[%clk 0:00:29.4]}
29... Bxe7 {[%clk 0:00:15.7]} 30. Nxe7+ {[%clk 0:00:29.4]} 30... Kf8 {[%clk
0:00:12.2]} 31. Rxc7 {[%clk 0:00:29.8]} 31... Nxc7 {[%clk 0:00:12.4]} 32. Rxd7
{[%clk 0:00:29]} 32... Ne6 {[%clk 0:00:04.4]} 33. Qh4 {[%clk 0:00:24.8]} 33...
h5 {[%clk 0:00:02.8]} 34. Qg3 {[%clk 0:00:13.9]} 1-0

[Event "Early-Titled-Tuesday-Blitz-March-26-2024"]
[Site "Chess.com"]
[Date "2024.03.26"]
[Round "9"]
[White "Incognizance"]
[Black "CURRUTACO59"]
[Result "0-1"]
[WhiteElo "1918"]
[BlackElo "2280"]
[TimeControl "180+1"]
[EndTime "9:43:10 PDT"]
[Termination "CURRUTACO59 won by checkmate"]

1. d4 {[%clk 0:03:00.9]} 1... Nf6 {[%clk 0:02:57.8]} 2. c4 {[%clk 0:03:01.3]}
2... e6 {[%clk 0:02:57.1]} 3. Nf3 {[%clk 0:03:01.1]} 3... Bb4+ {[%clk
0:02:56.6]} 4. Nbd2 {[%clk 0:03:01.4]} 4... b6 {[%clk 0:02:56.1]} 5. e3 {[%clk
0:03:01.6]} 5... Bb7 {[%clk 0:02:56]} 6. g3 {[%clk 0:02:59.4]} 6... O-O {[%clk
0:02:34]} 7. Bg2 {[%clk 0:02:59.7]} 7... d5 {[%clk 0:02:27.9]} 8. cxd5 {[%clk
0:02:57.3]} 8... Bxd5 {[%clk 0:02:25.6]} 9. O-O {[%clk 0:02:56.7]} 9... Nbd7
{[%clk 0:02:19.4]} 10. a3 {[%clk 0:02:56.8]} 10... Be7 {[%clk 0:02:18.3]} 11. b4
{[%clk 0:02:56.3]} 11... c5 {[%clk 0:02:15.1]} 12. dxc5 {[%clk 0:02:56.2]} 12...
bxc5 {[%clk 0:02:15]} 13. bxc5 {[%clk 0:02:56.7]} 13... Nxc5 {[%clk 0:02:14.3]}
14. Nh4 {[%clk 0:02:50.2]} 14... Bxg2 {[%clk 0:02:05.7]} 15. Nxg2 {[%clk
0:02:51.1]} 15... Qd5 {[%clk 0:01:48.9]} 16. Qe2 {[%clk 0:02:45.5]} 16... Rfd8
{[%clk 0:01:47.2]} 17. Nf3 {[%clk 0:02:34.7]} 17... Rab8 {[%clk 0:01:28.8]} 18.
Bb2 {[%clk 0:02:27.6]} 18... Qb3 {[%clk 0:01:25.1]} 19. Be5 {[%clk 0:02:13]}
19... Rb7 {[%clk 0:01:18.3]} 20. Rfb1 {[%clk 0:02:05.3]} 20... Qa4 {[%clk
0:01:17.4]} 21. Rxb7 {[%clk 0:02:04.6]} 21... Nxb7 {[%clk 0:01:16.3]} 22. Bd4
{[%clk 0:01:53.9]} 22... Nd6 {[%clk 0:00:59.8]} 23. Bc5 {[%clk 0:01:36.8]} 23...
Rc8 {[%clk 0:00:55.2]} 24. Bb4 {[%clk 0:01:29.4]} 24... a5 {[%clk 0:00:53.9]}
25. Bxd6 {[%clk 0:01:27]} 25... Bxd6 {[%clk 0:00:54.8]} 26. Nf4 {[%clk
0:01:22.9]} 26... Ne4 {[%clk 0:00:43.9]} 27. Kg2 {[%clk 0:01:13]} 27... h6
{[%clk 0:00:39.4]} 28. Ra2 {[%clk 0:01:02]} 28... Qb3 {[%clk 0:00:30]} 29. Nd2
{[%clk 0:00:59.5]} 29... Qxa2 {[%clk 0:00:28.8]} 30. Nxe4 {[%clk 0:00:58.7]}
30... Qxe2 {[%clk 0:00:28.4]} 31. Nxe2 {[%clk 0:00:59.3]} 31... Bxa3 {[%clk
0:00:28.5]} 32. Nd4 {[%clk 0:00:57.5]} 32... Bb2 {[%clk 0:00:27.1]} 33. Nd6
{[%clk 0:00:54.9]} 33... Ra8 {[%clk 0:00:20.8]} 34. N4b5 {[%clk 0:00:51.3]}
34... a4 {[%clk 0:00:20]} 35. Nc4 {[%clk 0:00:51.6]} 35... a3 {[%clk 0:00:19.3]}
36. Nxb2 {[%clk 0:00:51.5]} 36... axb2 {[%clk 0:00:19.3]} 37. Nc3 {[%clk
0:00:51.8]} 37... Ra1 {[%clk 0:00:19.2]} 38. Kf3 {[%clk 0:00:50]} 38... b1=Q
{[%clk 0:00:19.4]} 39. Nxb1 {[%clk 0:00:50.8]} 39... Rxb1 {[%clk 0:00:19.9]} 40.
h4 {[%clk 0:00:51.7]} 40... Rb5 {[%clk 0:00:19.9]} 41. Kg4 {[%clk 0:00:51.5]}
41... h5+ {[%clk 0:00:19.5]} 42. Kh3 {[%clk 0:00:49.4]} 42... g6 {[%clk
0:00:19.9]} 43. f3 {[%clk 0:00:49.6]} 43... f5 {[%clk 0:00:19.9]} 44. g4 {[%clk
0:00:47.2]} 44... Kf7 {[%clk 0:00:19.7]} 45. gxh5 {[%clk 0:00:45.1]} 45... gxh5
{[%clk 0:00:19.8]} 46. Kg3 {[%clk 0:00:45.7]} 46... e5 {[%clk 0:00:20.1]} 47. e4
{[%clk 0:00:43.9]} 47... Kf6 {[%clk 0:00:20.1]} 48. exf5 {[%clk 0:00:44]} 48...
Kxf5 {[%clk 0:00:20.2]} 49. Kg2 {[%clk 0:00:44.6]} 49... e4 {[%clk 0:00:20.4]}
50. fxe4+ {[%clk 0:00:44.7]} 50... Kxe4 {[%clk 0:00:21]} 51. Kg3 {[%clk
0:00:45.1]} 51... Rb3+ {[%clk 0:00:20.5]} 52. Kf2 {[%clk 0:00:45.3]} 52... Kf4
{[%clk 0:00:20.7]} 53. Ke2 {[%clk 0:00:45.7]} 53... Kg4 {[%clk 0:00:21.2]} 54.
Kd2 {[%clk 0:00:46.6]} 54... Kxh4 {[%clk 0:00:21.3]} 55. Kc2 {[%clk 0:00:47.5]}
55... Rg3 {[%clk 0:00:20.8]} 56. Kd2 {[%clk 0:00:47.9]} 56... Kg4 {[%clk
0:00:21.1]} 57. Ke2 {[%clk 0:00:48.8]} 57... h4 {[%clk 0:00:21.4]} 58. Kf2
{[%clk 0:00:49.7]} 58... h3 {[%clk 0:00:21.7]} 59. Ke2 {[%clk 0:00:50.6]} 59...
h2 {[%clk 0:00:21.9]} 60. Kd2 {[%clk 0:00:51.5]} 60... h1=Q {[%clk 0:00:20.3]}
61. Kc2 {[%clk 0:00:52.4]} 61... Qh2+ {[%clk 0:00:19]} 62. Kc1 {[%clk
0:00:52.5]} 62... Rg1# {[%clk 0:00:19.7]} 0-1

[Event "Early-Titled-Tuesday-Blitz-March-26-2024"]
[Site "Chess.com"]
[Date "2024.03.26"]
[Round "9"]
[White "ZenBull"]
[Black "xakevicius91"]
[Result "0-1"]
[WhiteElo "2305"]
[BlackElo "2522"]
[TimeControl "180+1"]
[EndTime "9:43:11 PDT"]
[Termination "xakevicius91 won by resignation"]

1. Nf3 {[%clk 0:03:00.9]} 1... Nf6 {[%clk 0:03:00.1]} 2. g3 {[%clk 0:03:01.4]}
2... d5 {[%clk 0:02:59.7]} 3. Bg2 {[%clk 0:03:02.3]} 3... c6 {[%clk 0:03:00]} 4.
O-O {[%clk 0:03:02.4]} 4... Bg4 {[%clk 0:02:59.7]} 5. h3 {[%clk 0:03:00.5]} 5...
Bxf3 {[%clk 0:03:00]} 6. Bxf3 {[%clk 0:03:01.4]} 6... Nbd7 {[%clk 0:03:00.3]} 7.
d4 {[%clk 0:03:01.3]} 7... e6 {[%clk 0:03:00.1]} 8. Nd2 {[%clk 0:03:00.8]} 8...
Be7 {[%clk 0:02:58.3]} 9. c3 {[%clk 0:03:01.1]} 9... O-O {[%clk 0:02:55.3]} 10.
e4 {[%clk 0:03:01.3]} 10... dxe4 {[%clk 0:02:55.2]} 11. Nxe4 {[%clk 0:03:02.2]}
11... Nxe4 {[%clk 0:02:55.4]} 12. Bxe4 {[%clk 0:03:03.1]} 12... Nf6 {[%clk
0:02:55.9]} 13. Bg2 {[%clk 0:03:03.3]} 13... h6 {[%clk 0:02:56.8]} 14. Qe2
{[%clk 0:03:02.9]} 14... Nd5 {[%clk 0:02:55.5]} 15. Be3 {[%clk 0:02:58.5]} 15...
Rc8 {[%clk 0:02:55]} 16. Rad1 {[%clk 0:02:57.8]} 16... Qa5 {[%clk 0:02:53.2]}
17. a3 {[%clk 0:02:56.9]} 17... Rfd8 {[%clk 0:02:53.2]} 18. Bd2 {[%clk
0:02:54.7]} 18... Qa4 {[%clk 0:02:52.6]} 19. Kh2 {[%clk 0:02:50.4]} 19... c5
{[%clk 0:02:51.7]} 20. dxc5 {[%clk 0:02:49.8]} 20... Bxc5 {[%clk 0:02:52.6]} 21.
Bc1 {[%clk 0:02:44.5]} 21... Qb3 {[%clk 0:02:43.1]} 22. Rd3 {[%clk 0:02:37.5]}
22... Nf6 {[%clk 0:02:35.9]} 23. Rfd1 {[%clk 0:02:32.9]} 23... Rxd3 {[%clk
0:02:34.8]} 24. Rxd3 {[%clk 0:02:29.1]} 24... Be7 {[%clk 0:02:31.9]} 25. Be3
{[%clk 0:02:24.7]} 25... b6 {[%clk 0:02:28.7]} 26. Qd2 {[%clk 0:02:22.9]} 26...
Qc4 {[%clk 0:02:22]} 27. Rd4 {[%clk 0:02:20.9]} 27... Qc7 {[%clk 0:02:15.3]} 28.
Rd3 {[%clk 0:02:17]} 28... Bc5 {[%clk 0:02:10.1]} 29. Bxc5 {[%clk 0:02:10.9]}
29... Qxc5 {[%clk 0:02:10.4]} 30. Rd8+ {[%clk 0:02:05.5]} 30... Kh7 {[%clk
0:02:08.6]} 31. Rxc8 {[%clk 0:02:04.9]} 31... Qxc8 {[%clk 0:02:09.5]} 32. Qd3+
{[%clk 0:02:01.6]} 32... g6 {[%clk 0:02:09.4]} 33. Qd4 {[%clk 0:01:58.9]} 33...
Kg7 {[%clk 0:02:09.2]} 34. Bf3 {[%clk 0:01:40.9]} 34... Qc7 {[%clk 0:02:08.2]}
35. Kg2 {[%clk 0:01:37.1]} 35... h5 {[%clk 0:02:05.7]} 36. h4 {[%clk 0:01:30.4]}
36... e5 {[%clk 0:02:04.8]} 37. Qd2 {[%clk 0:01:24.7]} 37... e4 {[%clk
0:02:02.4]} 38. Be2 {[%clk 0:01:23.8]} 38... Qe5 {[%clk 0:02:02.6]} 39. Kf1
{[%clk 0:00:57.1]} 39... Qc5 {[%clk 0:01:49.5]} 40. Kg1 {[%clk 0:00:48.8]} 40...
a5 {[%clk 0:01:46.5]} 41. b4 {[%clk 0:00:46.7]} 41... axb4 {[%clk 0:01:45.9]}
42. axb4 {[%clk 0:00:46.6]} 42... Qe5 {[%clk 0:01:44.2]} 43. Kh2 {[%clk
0:00:42]} 43... Nd5 {[%clk 0:01:43.5]} 44. c4 {[%clk 0:00:39.9]} 44... Ne7
{[%clk 0:01:27.4]} 45. Qe3 {[%clk 0:00:39.3]} 45... Nf5 {[%clk 0:01:25]} 46.
Qxb6 {[%clk 0:00:29.1]} 46... e3 {[%clk 0:01:25.1]} 47. Qc5 {[%clk 0:00:25.5]}
47... Qb2 {[%clk 0:01:11.2]} 48. Bf3 {[%clk 0:00:07.7]} 48... Qxf2+ {[%clk
0:01:09]} 49. Bg2 {[%clk 0:00:07.4]} 49... Qxg3+ {[%clk 0:01:08.3]} 50. Kh1
{[%clk 0:00:07.7]} 50... Qe1+ {[%clk 0:01:08.5]} 51. Kh2 {[%clk 0:00:08.2]}
51... Qxh4+ {[%clk 0:01:08.7]} 52. Kg1 {[%clk 0:00:08.1]} 52... Qf2+ {[%clk
0:01:08.6]} 53. Kh2 {[%clk 0:00:08.5]} 53... Qg3+ {[%clk 0:01:03.9]} 54. Kg1
{[%clk 0:00:08.4]} 54... Nh4 {[%clk 0:01:02.2]} 55. Qd4+ {[%clk 0:00:07.5]}
55... Kh7 {[%clk 0:01:00.7]} 56. Qe4 {[%clk 0:00:06.9]} 56... Qf2+ {[%clk
0:00:54.8]} 57. Kh2 {[%clk 0:00:06.8]} 57... e2 {[%clk 0:00:54]} 0-1

[Event "Early-Titled-Tuesday-Blitz-March-26-2024"]
[Site "Chess.com"]
[Date "2024.03.26"]
[Round "9"]
[White "Aural1011"]
[Black "IshviAggarwal"]
[Result "0-1"]
[WhiteElo "1657"]
[BlackElo "2175"]
[TimeControl "180+1"]
[EndTime "9:43:11 PDT"]
[Termination "IshviAggarwal won on time"]

1. d4 {[%clk 0:03:00.9]} 1... Nf6 {[%clk 0:02:57.1]} 2. c4 {[%clk 0:03:01.4]}
2... e6 {[%clk 0:02:55.7]} 3. Nc3 {[%clk 0:03:02]} 3... d5 {[%clk 0:02:56.3]} 4.
cxd5 {[%clk 0:03:01.5]} 4... exd5 {[%clk 0:02:57.2]} 5. Bg5 {[%clk 0:03:02.1]}
5... c6 {[%clk 0:02:57.4]} 6. Nf3 {[%clk 0:03:02.7]} 6... Be7 {[%clk 0:02:57.9]}
7. Qc2 {[%clk 0:03:03.2]} 7... Nbd7 {[%clk 0:02:58.7]} 8. e3 {[%clk 0:03:03.7]}
8... h6 {[%clk 0:02:59.3]} 9. Bh4 {[%clk 0:03:02.9]} 9... Nh5 {[%clk 0:03:00]}
10. Bxe7 {[%clk 0:02:59.6]} 10... Qxe7 {[%clk 0:03:00.9]} 11. Bd3 {[%clk
0:03:00.1]} 11... Nf4 {[%clk 0:03:00.9]} 12. O-O {[%clk 0:02:54.9]} 12... Nxd3
{[%clk 0:03:00.7]} 13. Qxd3 {[%clk 0:02:55.8]} 13... O-O {[%clk 0:03:00.9]} 14.
Rab1 {[%clk 0:02:54.9]} 14... a5 {[%clk 0:02:58.2]} 15. a3 {[%clk 0:02:54.8]}
15... Re8 {[%clk 0:02:49.1]} 16. b4 {[%clk 0:02:51.9]} 16... axb4 {[%clk
0:02:50]} 17. axb4 {[%clk 0:02:52.5]} 17... b5 {[%clk 0:02:50.5]} 18. Rfc1
{[%clk 0:02:49.7]} 18... Nb6 {[%clk 0:02:50.9]} 19. Ne5 {[%clk 0:02:48.4]} 19...
Bd7 {[%clk 0:02:42.1]} 20. e4 {[%clk 0:02:42]} 20... f6 {[%clk 0:02:30]} 21.
Nxd7 {[%clk 0:02:18.4]} 21... Qxd7 {[%clk 0:02:30]} 22. exd5 {[%clk 0:02:17.8]}
22... Nxd5 {[%clk 0:02:28.8]} 23. Nxd5 {[%clk 0:02:05.4]} 23... Qxd5 {[%clk
0:02:29.7]} 24. Rc5 {[%clk 0:02:05.2]} 24... Qd7 {[%clk 0:01:47.3]} 25. Rbc1
{[%clk 0:01:51.4]} 25... Rad8 {[%clk 0:01:34.7]} 26. Qb3+ {[%clk 0:01:07.3]}
26... Kh8 {[%clk 0:01:29.5]} 27. h3 {[%clk 0:00:59.8]} 27... Qxd4 {[%clk
0:01:27.5]} 28. Rxc6 {[%clk 0:00:56.6]} 28... Re2 {[%clk 0:01:24.8]} 29. Qf3
{[%clk 0:00:37]} 29... Rde8 {[%clk 0:01:18]} 30. Rc8 {[%clk 0:00:36.2]} 30...
Re7 {[%clk 0:01:06.8]} 31. Qh5 {[%clk 0:00:21.6]} 31... Qd7 {[%clk 0:00:59.4]}
32. Rxe8+ {[%clk 0:00:10.3]} 32... Rxe8 {[%clk 0:00:59.8]} 33. Rc5 {[%clk
0:00:07.4]} 33... Ra8 {[%clk 0:00:14.7]} 0-1

[Event "Early-Titled-Tuesday-Blitz-March-26-2024"]
[Site "Chess.com"]
[Date "2024.03.26"]
[Round "9"]
[White "verrbaa"]
[Black "C_K_G"]
[Result "1-0"]
[WhiteElo "2486"]
[BlackElo "2257"]
[TimeControl "180+1"]
[EndTime "9:43:14 PDT"]
[Termination "verrbaa won by checkmate"]

1. e4 {[%clk 0:03:00.9]} 1... c5 {[%clk 0:03:00.4]} 2. Nf3 {[%clk 0:03:00.8]}
2... d6 {[%clk 0:03:01.1]} 3. d4 {[%clk 0:03:01.1]} 3... cxd4 {[%clk 0:03:01.8]}
4. Nxd4 {[%clk 0:03:01.9]} 4... Nf6 {[%clk 0:03:02.4]} 5. Nc3 {[%clk 0:03:02.2]}
5... a6 {[%clk 0:03:02.8]} 6. Be2 {[%clk 0:03:00.3]} 6... e5 {[%clk 0:03:03.3]}
7. Nf3 {[%clk 0:02:59.9]} 7... Be6 {[%clk 0:03:03.7]} 8. Ng5 {[%clk 0:02:59.4]}
8... Be7 {[%clk 0:03:03.2]} 9. Nxe6 {[%clk 0:02:52.9]} 9... fxe6 {[%clk
0:03:03.7]} 10. Bh5+ {[%clk 0:02:50.3]} 10... g6 {[%clk 0:03:03]} 11. Bg4 {[%clk
0:02:50.2]} 11... Nxg4 {[%clk 0:03:00.7]} 12. Qxg4 {[%clk 0:02:49.9]} 12... Qd7
{[%clk 0:02:45.4]} 13. Be3 {[%clk 0:02:38]} 13... O-O {[%clk 0:02:40.8]} 14. h4
{[%clk 0:02:36.7]} 14... Bf6 {[%clk 0:02:21.8]} 15. h5 {[%clk 0:02:36.3]} 15...
Qf7 {[%clk 0:02:18.4]} 16. O-O-O {[%clk 0:02:34.9]} 16... Rd8 {[%clk 0:02:10.9]}
17. Bb6 {[%clk 0:02:26.8]} 17... Rd7 {[%clk 0:02:08.3]} 18. Ne2 {[%clk
0:02:23.8]} 18... Nc6 {[%clk 0:02:06.7]} 19. f4 {[%clk 0:02:23.8]} 19... exf4
{[%clk 0:02:03.3]} 20. Nxf4 {[%clk 0:02:21.5]} 20... Ne5 {[%clk 0:01:57.1]} 21.
Qxe6 {[%clk 0:02:10.2]} 21... Bg5 {[%clk 0:01:56.2]} 22. Qxf7+ {[%clk
0:02:09.5]} 22... Rxf7 {[%clk 0:01:54.8]} 23. g3 {[%clk 0:02:09.7]} 23... Bxf4+
{[%clk 0:01:47.8]} 24. gxf4 {[%clk 0:02:09.5]} 24... Rxf4 {[%clk 0:01:47.6]} 25.
hxg6 {[%clk 0:02:09.8]} 25... hxg6 {[%clk 0:01:37.2]} 26. Rxd6 {[%clk
0:02:09.4]} 26... Rxe4 {[%clk 0:01:37]} 27. Bd4 {[%clk 0:01:55.7]} 27... Re8
{[%clk 0:01:18.5]} 28. b3 {[%clk 0:01:42.7]} 28... g5 {[%clk 0:01:01.5]} 29. Bc3
{[%clk 0:01:06.8]} 29... g4 {[%clk 0:00:53.8]} 30. Rdh6 {[%clk 0:01:05.7]} 30...
Re2 {[%clk 0:00:41.9]} 31. Rh8+ {[%clk 0:00:56.4]} 31... Kf7 {[%clk 0:00:41.5]}
32. R1h7+ {[%clk 0:00:56.6]} 32... Kg6 {[%clk 0:00:30.9]} 33. Rxe8 {[%clk
0:00:43.3]} 33... Nd3+ {[%clk 0:00:20]} 34. cxd3 {[%clk 0:00:42.9]} 34... Rxe8
{[%clk 0:00:20]} 35. Rg7+ {[%clk 0:00:42.1]} 35... Kf5 {[%clk 0:00:19.1]} 36.
Kd2 {[%clk 0:00:42.2]} 36... b5 {[%clk 0:00:18.1]} 37. Bd4 {[%clk 0:00:38.5]}
37... Kf4 {[%clk 0:00:17.5]} 38. Be3+ {[%clk 0:00:22.8]} 38... Kf3 {[%clk
0:00:17.2]} 39. Rf7+ {[%clk 0:00:22.6]} 39... Kg2 {[%clk 0:00:16.9]} 40. Ke2
{[%clk 0:00:22.8]} 40... g3 {[%clk 0:00:16.8]} 41. Rg7 {[%clk 0:00:22.1]} 41...
Kh3 {[%clk 0:00:15.6]} 42. Kf3 {[%clk 0:00:20.7]} 42... Rf8+ {[%clk 0:00:15.1]}
43. Bf4 {[%clk 0:00:20.8]} 43... g2 {[%clk 0:00:14.7]} 44. Rh7# {[%clk
0:00:17.6]} 1-0

[Event "Early-Titled-Tuesday-Blitz-March-26-2024"]
[Site "Chess.com"]
[Date "2024.03.26"]
[Round "9"]
[White "Aleksandar-Topalov"]
[Black "HajiyevKanan"]
[Result "0-1"]
[WhiteElo "2361"]
[BlackElo "2544"]
[TimeControl "180+1"]
[EndTime "9:43:19 PDT"]
[Termination "HajiyevKanan won by resignation"]

1. b3 {[%clk 0:03:00.9]} 1... c6 {[%clk 0:03:00.6]} 2. Bb2 {[%clk 0:03:01]} 2...
d5 {[%clk 0:03:01.5]} 3. Nf3 {[%clk 0:03:00.4]} 3... Bg4 {[%clk 0:03:01.7]} 4.
Ne5 {[%clk 0:02:56.6]} 4... Bf5 {[%clk 0:03:00.2]} 5. d3 {[%clk 0:02:48.8]} 5...
Nd7 {[%clk 0:02:58.9]} 6. Nxd7 {[%clk 0:02:48.6]} 6... Qxd7 {[%clk 0:02:59.8]}
7. Nd2 {[%clk 0:02:48.5]} 7... Nf6 {[%clk 0:02:56.3]} 8. Nf3 {[%clk 0:02:41.1]}
8... e6 {[%clk 0:02:54.7]} 9. e3 {[%clk 0:02:38.8]} 9... Bb4+ {[%clk 0:02:53.6]}
10. c3 {[%clk 0:02:34.7]} 10... Bd6 {[%clk 0:02:51.4]} 11. Be2 {[%clk
0:02:28.4]} 11... O-O {[%clk 0:02:51.4]} 12. Nh4 {[%clk 0:02:24.5]} 12... Rfe8
{[%clk 0:02:48]} 13. Nxf5 {[%clk 0:02:23.1]} 13... exf5 {[%clk 0:02:48.9]} 14.
O-O {[%clk 0:02:22.6]} 14... Qc7 {[%clk 0:02:44]} 15. g3 {[%clk 0:02:19.6]}
15... Be5 {[%clk 0:02:42]} 16. Qc2 {[%clk 0:02:14.7]} 16... a5 {[%clk
0:02:37.9]} 17. d4 {[%clk 0:02:14.3]} 17... Bd6 {[%clk 0:02:37.7]} 18. Qxf5
{[%clk 0:02:14.2]} 18... Ne4 {[%clk 0:02:37.3]} 19. Bd3 {[%clk 0:02:03.8]} 19...
g6 {[%clk 0:02:32.7]} 20. Qg4 {[%clk 0:01:56.9]} 20... f5 {[%clk 0:02:19.2]} 21.
Qe2 {[%clk 0:01:46.5]} 21... a4 {[%clk 0:02:19.7]} 22. Bxe4 {[%clk 0:01:46.1]}
22... Rxe4 {[%clk 0:02:15.3]} 23. Qf3 {[%clk 0:01:37.4]} 23... h5 {[%clk
0:02:08.5]} 24. c4 {[%clk 0:01:35.3]} 24... Kf7 {[%clk 0:01:54.3]} 25. Bc3
{[%clk 0:01:34.1]} 25... h4 {[%clk 0:01:52.7]} 26. cxd5 {[%clk 0:01:28]} 26...
hxg3 {[%clk 0:01:48]} 27. hxg3 {[%clk 0:01:26.3]} 27... cxd5 {[%clk 0:01:47.5]}
28. Rac1 {[%clk 0:01:23.8]} 28... Qe7 {[%clk 0:01:29]} 29. bxa4 {[%clk
0:01:19.1]} 29... Rxa4 {[%clk 0:01:12.7]} 30. Rc2 {[%clk 0:01:18.7]} 30... Rc4
{[%clk 0:01:10.8]} 31. Rfc1 {[%clk 0:01:14.4]} 31... Qc7 {[%clk 0:01:10.7]} 32.
Qd1 {[%clk 0:01:09.5]} 32... Ba3 {[%clk 0:01:08.5]} 33. Rb1 {[%clk 0:00:55.4]}
33... Rxc3 {[%clk 0:01:04]} 34. Rxc3 {[%clk 0:00:55.4]} 34... Qxc3 {[%clk
0:01:03.7]} 35. Rb3 {[%clk 0:00:52.2]} 35... Qc1 {[%clk 0:00:59.9]} 36. Rxb7+
{[%clk 0:00:51]} 36... Re7 {[%clk 0:00:59.1]} 37. Qxc1 {[%clk 0:00:44.4]} 37...
Bxc1 {[%clk 0:01:00]} 38. Rb5 {[%clk 0:00:43.2]} 38... Rd7 {[%clk 0:00:57.8]}
39. Kf1 {[%clk 0:00:40]} 39... Ke6 {[%clk 0:00:57.2]} 40. Ke2 {[%clk 0:00:40.2]}
40... Rd6 {[%clk 0:00:57.7]} 41. Kd3 {[%clk 0:00:39.6]} 41... Ra6 {[%clk
0:00:57.3]} 42. a4 {[%clk 0:00:31.6]} 42... Rxa4 {[%clk 0:00:49.9]} 43. Rb6+
{[%clk 0:00:30.8]} 43... Kf7 {[%clk 0:00:50.2]} 44. Rb3 {[%clk 0:00:30.3]} 44...
Ra3 {[%clk 0:00:49.4]} 45. Rxa3 {[%clk 0:00:29.5]} 45... Bxa3 {[%clk 0:00:50.3]}
46. f3 {[%clk 0:00:29]} 46... Bd6 {[%clk 0:00:48.8]} 47. g4 {[%clk 0:00:24.2]}
47... fxg4 {[%clk 0:00:44.8]} 48. fxg4 {[%clk 0:00:24.5]} 48... Kf6 {[%clk
0:00:45.5]} 49. e4 {[%clk 0:00:24.8]} 49... Kg5 {[%clk 0:00:31.2]} 50. exd5
{[%clk 0:00:24]} 50... Kxg4 {[%clk 0:00:31.1]} 51. Kc4 {[%clk 0:00:24.7]} 51...
Kf5 {[%clk 0:00:21.2]} 52. Kb5 {[%clk 0:00:25.6]} 52... Kf6 {[%clk 0:00:20.6]}
53. Kc6 {[%clk 0:00:25.9]} 53... Ke7 {[%clk 0:00:21]} 0-1